fUSD/lending_fUSD_20260107
["ID","MTS","AMOUNT","RATE_DAILY","PERIOD"]
[400692081,1767779476222,-1770.64,0.0003863,14]
[400692083,1767779476232,-500.0,0.0003863,14]
[400692085,1767779476242,-500.0,0.0003863,14]
[400692087,1767779476251,-500.0,0.0003863,14]
[400692089,1767779476261,-198.34443781,0.0003863,14]
[400692091,1767779476271,-500.0,0.0003863,14]
[400692093,1767779476280,-500.0,0.0003863,14]
[400692095,1767779476290,-151.0,0.0003863,120]
[400692097,1767779476299,-500.0,0.0003863,14]
[400692099,1767779476308,-151.0,0.0003863,120]
[400692101,1767779476318,-500.0,0.0003863,14]
[400692103,1767779476328,-500.0,0.0003863,14]
[400692105,1767779476339,-970.5,0.0003863,14]
[400692107,1767779476349,-500.0,0.0003863,14]
[400692109,1767779476359,-151.0,0.0003863,120]
[400692111,1767779476369,-1024.98,0.0003863,14]
[400692113,1767779476378,-983.95629,0.0003863,120]
[400692115,1767779476389,-151.0,0.0003863,120]
[400692117,1767779476398,-643.72,0.0003863,14]
[400692119,1767779476408,-983.95629,0.0003863,120]
[400692121,1767779476418,-983.95629,0.0003863,120]
[400692124,1767779476428,-983.95629,0.0003863,120]
[400692126,1767779476439,-500.0,0.0003863,14]
[400692128,1767779476449,-777.305943,0.0003863,120]
[400692130,1767779476458,-500.0,0.0003863,14]
[400692132,1767779476468,-500.0,0.0003863,14]
[400692134,1767779476478,-719.23,0.0003863,14]
[400692136,1767779476487,-777.305943,0.0003863,120]
[400692138,1767779476496,-500.0,0.0003863,14]
[400692140,1767779476506,-777.305943,0.0003863,120]
[400692142,1767779476515,-500.0,0.0003863,14]
[400692144,1767779476524,-500.0,0.0003863,14]
[400692146,1767779476534,-500.0,0.0003863,14]
[400692148,1767779476543,-777.305943,0.0003863,120]
[400692150,1767779476553,-500.0,0.0003863,14]
[400692152,1767779476562,-500.0,0.0003863,14]
[400692154,1767779476572,-500.0,0.0003863,14]
[400692156,1767779476581,-500.0,0.0003863,14]
[400692158,1767779476590,-500.0,0.0003863,14]
[400692160,1767779476600,-500.0,0.0003863,14]
[400692162,1767779476609,-1854.82,0.0003863,14]
[400692164,1767779476618,-500.0,0.0003863,14]
[400692166,1767779476628,-500.0,0.0003863,14]
[400692168,1767779476637,-500.0,0.0003863,14]
[400692170,1767779476647,-500.0,0.0003863,14]
[400692171,1767779476656,-769.28,0.0003863,14]
[400692172,1767779476665,-532.89867586,0.0003863,14]
[400692173,1767779476675,-1334.87,0.0003863,14]
[400692174,1767779476684,-500.0,0.0003863,14]
[400692175,1767779476694,-500.0,0.0003863,14]
[400692176,1767779476703,-626.12,0.0003863,14]
[400692177,1767779476713,-500.0,0.0003863,14]
[400692178,1767779476722,-588.90395677,0.0003863,14]
[400692179,1767779476732,-500.0,0.0003863,14]
[400692180,1767779476741,-500.0,0.0003863,14]
[400692181,1767779476751,-500.0,0.0003863,14]
[400692182,1767779476760,-313.9850701,0.0003863,14]
[400692183,1767779476770,-500.0,0.0003863,14]
[400692184,1767779476778,-500.0,0.0003863,14]
[400692185,1767779476787,-500.0,0.0003863,14]
[400692186,1767779476796,-500.0,0.0003863,14]
[400692187,1767779476806,-500.0,0.0003863,14]
[400692188,1767779476816,-500.0,0.0003863,14]
[400692189,1767779476825,-500.0,0.0003863,14]
[400692190,1767779476834,-500.0,0.0003863,14]
[400692191,1767779476844,-520.19616722,0.0003863,14]
[400692192,1767779476853,-500.0,0.0003863,14]
[400692193,1767779476863,-500.0,0.0003863,14]
[400692194,1767779476872,-500.0,0.0003863,14]
[400692195,1767779476882,-500.0,0.0003863,14]
[400692196,1767779476892,-500.0,0.0003863,14]
[400692197,1767779476901,-500.0,0.0003863,14]
[400692198,1767779476911,-500.0,0.0003863,14]
[400692199,1767779476921,-500.0,0.0003863,14]
[400692200,1767779476931,-1094.42,0.0003863,14]
[400692201,1767779476940,-500.0,0.0003863,14]
[400692202,1767779476949,-500.0,0.0003863,14]
[400692203,1767779476959,-1172.87,0.0003863,14]
[400692204,1767779476969,-500.0,0.0003863,14]
[400692205,1767779476984,-500.0,0.0003863,14]
[400692206,1767779476993,-500.0,0.0003863,14]
[400692207,1767779477003,-599.51,0.0003863,14]
[400692208,1767779477016,-500.0,0.0003863,14]
[400692209,1767779477026,-500.0,0.0003863,14]
[400692210,1767779477036,-500.0,0.0003863,14]
[400692211,1767779477048,-500.0,0.0003863,14]
[400692212,1767779477058,-247.149859,0.0003863,120]
[400692213,1767779477068,-500.0,0.0003863,14]
[400692214,1767779477078,-500.0,0.0003863,14]
[400692215,1767779477087,-895.54,0.0003863,14]
[400692216,1767779477097,-500.0,0.0003863,14]
[400692217,1767779477107,-247.149859,0.0003863,120]
[400692218,1767779477117,-500.0,0.0003863,14]
[400692219,1767779477126,-500.0,0.0003863,14]
[400692220,1767779477136,-247.149859,0.0003863,120]
[400692221,1767779477147,-247.149859,0.0003863,120]
[400692222,1767779477160,-500.0,0.0003863,14]
[400692223,1767779477170,-511.14218874,0.0003863,14]
[400692224,1767779477182,-527.66343084,0.0003863,14]
[400692225,1767779477192,-1245.71,0.0003863,14]
[400692226,1767779477202,-500.0,0.0003863,14]
[400692227,1767779477212,-780.478158,0.0003863,120]
[400692228,1767779477223,-500.0,0.0003863,14]
[400692229,1767779477233,-500.0,0.0003863,14]
[400692230,1767779477242,-500.0,0.0003863,14]
[400692231,1767779477254,-500.0,0.0003863,14]
[400692232,1767779477264,-500.0,0.0003863,14]
[400692233,1767779477275,-500.0,0.0003863,14]
[400692234,1767779477285,-500.0,0.0003863,14]
[400692235,1767779477295,-780.478158,0.0003863,120]
[400692236,1767779477305,-500.0,0.0003863,14]
[400692237,1767779477316,-759.4,0.0003863,14]
[400692238,1767779477326,-780.478158,0.0003863,120]
[400692239,1767779477336,-500.0,0.0003863,14]
[400692240,1767779477346,-500.0,0.0003863,14]
[400692241,1767779477356,-780.478158,0.0003863,120]
[400692242,1767779477367,-500.0,0.0003863,14]
[400692243,1767779477377,-500.0,0.0003863,14]
[400692244,1767779477387,-500.0,0.0003863,14]
[400692245,1767779477397,-500.0,0.0003863,14]
[400692246,1767779477407,-500.0,0.0003863,14]
[400692247,1767779477418,-546.78194293,0.0003863,14]
[400692248,1767779477429,-500.0,0.0003863,14]
[400692249,1767779477439,-500.0,0.0003863,14]
[400692250,1767779477449,-500.0,0.0003863,14]
[400692251,1767779477460,-500.0,0.0003863,14]
[400692252,1767779477470,-500.0,0.0003863,14]
[400692253,1767779477480,-500.0,0.0003863,14]
[400692254,1767779477490,-500.0,0.0003863,14]
[400692255,1767779477501,-500.0,0.0003863,14]
[400692256,1767779477511,-500.0,0.0003863,14]
[400692258,1767779477522,-500.0,0.0003863,14]
[400692259,1767779477531,-443.18203132,0.0003863,14]
[400692261,1767779477541,-450.49028508,0.0003863,14]
[400692262,1767779477551,-500.0,0.0003863,14]
[400692263,1767779477561,-500.0,0.0003863,14]
[400692264,1767779477571,-557.00203977,0.0003863,14]
[400692265,1767779477581,-500.0,0.0003863,14]
[400692266,1767779477591,-500.0,0.0003863,14]
[400692267,1767779477602,-500.0,0.0003863,14]
[400692271,1767779477906,-500.0,0.0003863,14]
[400692272,1767779477916,-500.0,0.0003863,14]
[400692273,1767779477926,-500.0,0.0003863,14]
[400692274,1767779477936,-500.0,0.0003863,14]
[400692275,1767779477946,-520.63005421,0.0003863,14]
[400692276,1767779477956,-500.0,0.0003863,14]
[400692277,1767779477967,-1479.61,0.0003863,14]
[400692278,1767779477977,-500.0,0.0003863,14]
[400692279,1767779477987,-500.0,0.0003863,14]
[400692280,1767779477996,-500.0,0.0003863,14]
[400692281,1767779478007,-500.0,0.0003863,14]
[400692282,1767779478018,-550.64885487,0.0003863,14]
[400692283,1767779478028,-172.16410624,0.0003863,14]
[400692284,1767779478039,-630.23,0.0003863,14]
[400692285,1767779478049,-500.0,0.0003863,14]
[400692286,1767779478059,-500.0,0.0003863,14]
[400692287,1767779478069,-500.0,0.0003863,14]
[400692288,1767779478079,-833.75,0.0003863,14]
[400692289,1767779478088,-518.80613998,0.0003863,14]
[400692290,1767779478098,-584.34,0.0003863,14]
[400692291,1767779478108,-500.0,0.0003863,14]
[400692292,1767779478118,-570.99910146,0.0003863,14]
[400692293,1767779478128,-614.62229685,0.0003863,14]
[400692294,1767779478137,-500.0,0.0003863,14]
[400692295,1767779478147,-500.0,0.0003863,14]
[400692296,1767779478157,-500.0,0.0003863,14]
[400692297,1767779478167,-500.0,0.0003863,14]
[400692298,1767779478177,-500.0,0.0003863,14]
[400692299,1767779478186,-500.0,0.0003863,14]
[400692300,1767779478196,-500.0,0.0003863,14]
[400692301,1767779478205,-500.0,0.0003863,14]
[400692302,1767779478215,-1318.9,0.0003863,14]
[400692303,1767779478224,-761.53,0.0003863,14]
[400692304,1767779478234,-822.39,0.0003863,14]
[400692305,1767779478244,-514.13359613,0.0003863,14]
[400692306,1767779478254,-151.0,0.0003863,60]
[400692307,1767779478264,-565.39852279,0.0003863,14]
[400692308,1767779478273,-500.0,0.0003863,14]
[400692309,1767779478283,-500.0,0.0003863,14]
[400692310,1767779478293,-500.0,0.0003863,14]
[400692311,1767779478303,-500.0,0.0003863,14]
[400692312,1767779478313,-530.46,0.0003863,14]
[400692313,1767779478324,-3177.91,0.0003863,14]
[400692314,1767779478334,-500.0,0.0003863,14]
[400692315,1767779478348,-500.0,0.0003863,14]
[400692316,1767779478359,-500.0,0.0003863,14]
[400692317,1767779478370,-500.0,0.0003863,14]
[400692318,1767779478379,-669.66,0.0003863,14]
[400692319,1767779478390,-500.0,0.0003863,14]
[400692320,1767779478401,-566.8371619,0.0003863,14]
[400692321,1767779478412,-500.0,0.0003863,14]
[400692322,1767779478422,-727.22,0.0003863,14]
[400692323,1767779478432,-500.0,0.0003863,14]
[400692324,1767779478443,-165.76239783,0.0003863,14]
[400692325,1767779478453,-500.0,0.0003863,14]
[400692326,1767779478463,-151.363856,0.0003863,120]
[400692327,1767779478473,-500.0,0.0003863,14]
[400692328,1767779478484,-590.25,0.0003863,14]
[400692329,1767779478494,-151.363856,0.0003863,120]
[400692330,1767779478504,-151.0,0.0003863,120]
[400692331,1767779478514,-500.0,0.0003863,14]
[400692332,1767779478523,-151.363856,0.0003863,120]
[400692333,1767779478533,-242.653987,0.0003863,120]
[400692334,1767779478543,-500.0,0.0003863,14]
[400692335,1767779478554,-500.0,0.0003863,14]
[400692336,1767779478564,-151.0,0.0003863,120]
[400692337,1767779478573,-1315.49,0.0003863,14]
[400692338,1767779478583,-500.0,0.0003863,14]
[400692339,1767779478593,-151.363856,0.0003863,120]
[400692340,1767779478603,-242.653987,0.0003863,120]
[400692341,1767779478613,-555.18178709,0.0003863,14]
[400692342,1767779478623,-500.0,0.0003863,14]
[400692343,1767779478633,-674.76,0.0003863,14]
[400692344,1767779478643,-500.0,0.0003863,14]
[400692345,1767779478652,-500.0,0.0003863,14]
[400692346,1767779478662,-555.026881,0.0003863,120]
[400692347,1767779478672,-500.0,0.0003863,14]
[400692348,1767779478682,-500.0,0.0003863,14]
[400692349,1767779478692,-555.026881,0.0003863,120]
[400692350,1767779478706,-300.0,0.0003863,14]
[400692351,1767779478716,-500.0,0.0003863,14]
[400692352,1767779478726,-500.0,0.0003863,14]
[400692353,1767779478736,-500.0,0.0003863,14]
[400692354,1767779478746,-555.026881,0.0003863,120]
[400692355,1767779478756,-500.0,0.0003863,14]
[400692356,1767779478766,-500.0,0.0003863,14]
[400692357,1767779478776,-242.653987,0.0003863,120]
[400692358,1767779478786,-555.026881,0.0003863,120]
[400692359,1767779478797,-500.0,0.0003863,14]
[400692360,1767779478808,-500.0,0.0003863,14]
[400692361,1767779478819,-500.0,0.0003863,14]
[400692362,1767779478828,-242.653987,0.0003863,120]
[400692363,1767779478838,-528.02999228,0.0003863,14]
[400692364,1767779478849,-255.891169,0.0003863,30]
[400692365,1767779478860,-500.0,0.0003863,14]
[400692366,1767779478870,-500.0,0.0003863,14]
[400692367,1767779478881,-1192.02,0.0003863,14]
[400692368,1767779478890,-500.0,0.0003863,14]
[400692369,1767779478899,-255.891169,0.0003863,30]
[400692370,1767779478909,-500.0,0.0003863,14]
[400692371,1767779478920,-500.0,0.0003863,14]
[400692372,1767779478930,-255.891169,0.0003863,30]
[400692373,1767779478941,-500.0,0.0003863,14]
[400692374,1767779478950,-500.0,0.0003863,14]
[400692375,1767779478961,-255.891169,0.0003863,30]
[400692376,1767779478970,-500.0,0.0003863,14]
[400692377,1767779478984,-500.0,0.0003863,14]
[400692378,1767779478994,-500.0,0.0003863,14]
[400692379,1767779479003,-506.15151026,0.0003863,14]
[400692380,1767779479012,-500.0,0.0003863,14]
[400692381,1767779479024,-500.0,0.0003863,14]
[400692382,1767779479034,-931.37,0.0003863,14]
[400692383,1767779479045,-500.0,0.0003863,14]
[400692384,1767779479058,-500.0,0.0003863,14]
[400692385,1767779479070,-500.0,0.0003863,14]
[400692386,1767779479080,-500.0,0.0003863,14]
[400692387,1767779479090,-500.0,0.0003863,14]
[400692388,1767779479100,-721.89,0.0003863,14]
[400692389,1767779479110,-500.0,0.0003863,14]
[400692390,1767779479120,-500.0,0.0003863,14]
[400692391,1767779479129,-500.0,0.0003863,14]
[400692392,1767779479139,-500.0,0.0003863,14]
[400692393,1767779479148,-500.0,0.0003863,14]
[400692394,1767779479158,-500.0,0.0003863,14]
[400692395,1767779479171,-500.0,0.0003863,14]
[400692396,1767779479182,-586.31943007,0.0003863,14]
[400692397,1767779479192,-500.0,0.0003863,14]
[400692398,1767779479202,-500.0,0.0003863,14]
[400692399,1767779479211,-500.0,0.0003863,14]
[400692400,1767779479221,-742.44,0.0003863,14]
[400692401,1767779479231,-500.0,0.0003863,14]
[400692402,1767779479241,-500.0,0.0003863,14]
[400692403,1767779479251,-500.0,0.0003863,14]
[400692404,1767779479261,-500.0,0.0003863,14]
[400692405,1767779479271,-725.0,0.0003863,14]
[400692406,1767779479286,-500.0,0.0003863,14]
[400692407,1767779479296,-500.0,0.0003863,14]
[400692408,1767779479306,-500.0,0.0003863,14]
[400692409,1767779479316,-2463.82,0.0003863,14]
[400692410,1767779479327,-500.0,0.0003863,14]
[400692411,1767779479336,-572.57189163,0.0003863,14]
[400692412,1767779479346,-500.0,0.0003863,14]
[400692413,1767779479356,-512.33191599,0.0003863,14]
[400692414,1767779479365,-500.0,0.0003863,14]
[400692415,1767779479376,-500.0,0.0003863,14]
[400692416,1767779479386,-500.0,0.0003863,14]
[400692417,1767779479396,-1361.45,0.0003863,14]
[400692418,1767779479406,-508.09,0.0003863,14]
[400692419,1767779479418,-500.0,0.0003863,14]
[400692420,1767779479428,-500.0,0.0003863,14]
[400692421,1767779479437,-500.0,0.0003863,14]
[400692422,1767779479446,-1017.56,0.0003863,14]
[400692423,1767779479456,-826.16,0.0003863,14]
[400692424,1767779479465,-500.0,0.0003863,14]
[400692425,1767779479476,-500.0,0.0003863,14]
[400692426,1767779479486,-500.0,0.0003863,14]
[400692427,1767779479496,-1017.36,0.0003863,14]
[400692428,1767779479506,-1061.69422844,0.0003863,14]
[400692429,1767779479516,-500.0,0.0003863,14]
[400692430,1767779479526,-500.0,0.0003863,14]
[400692431,1767779479536,-525.32,0.0003863,14]
[400692432,1767779479546,-500.0,0.0003863,14]
[400692433,1767779479556,-500.0,0.0003863,14]
[400692434,1767779479566,-500.0,0.0003863,14]
[400692435,1767779479576,-576.39,0.0003863,14]
[400692436,1767779479586,-1048.51,0.0003863,14]
[400692437,1767779479596,-500.0,0.0003863,14]
[400692438,1767779479606,-151.0,0.0003863,7]
[400692439,1767779479618,-798.61,0.0003863,14]
[400692440,1767779479628,-687.06,0.0003863,14]
[400692441,1767779479639,-509.09530481,0.0003863,14]
[400692442,1767779479648,-517.13666413,0.0003863,14]
[400692443,1767779479658,-500.0,0.0003863,14]
[400692444,1767779479668,-500.0,0.0003863,14]
[400692445,1767779479678,-500.0,0.0003863,14]
[400692446,1767779479688,-558.46843675,0.0003863,14]
[400692447,1767779479697,-500.0,0.0003863,14]
[400692448,1767779479707,-500.0,0.0003863,14]
[400692449,1767779479717,-500.0,0.0003863,14]
[400692450,1767779479727,-607.05,0.0003863,14]
[400692451,1767779479736,-500.0,0.0003863,14]
[400692452,1767779479745,-571.097463,0.0003863,120]
[400692453,1767779479755,-151.0,0.0003863,120]
[400692454,1767779479765,-500.0,0.0003863,14]
[400692455,1767779479775,-151.0,0.0003863,120]
[400692456,1767779479785,-500.0,0.0003863,14]
[400692457,1767779479794,-747.33,0.0003863,14]
[400692458,1767779479804,-571.097463,0.0003863,120]
[400692459,1767779479814,-274.10351,0.0003863,120]
[400692460,1767779479823,-151.0,0.0003863,120]
[400692461,1767779479834,-500.0,0.0003863,14]
[400692462,1767779479843,-548.43,0.0003863,14]
[400692463,1767779479853,-571.097463,0.0003863,120]
[400692464,1767779479863,-574.16419348,0.0003863,14]
[400692465,1767779479872,-500.0,0.0003863,14]
[400692466,1767779479882,-539.31,0.0003863,14]
[400692467,1767779479891,-525.72357,0.0003863,120]
[400692468,1767779479900,-500.0,0.0003863,14]
[400692469,1767779479910,-500.0,0.0003863,14]
[400692470,1767779479919,-500.0,0.0003863,14]
[400692471,1767779479929,-500.0,0.0003863,14]
[400692472,1767779479939,-571.097463,0.0003863,120]
[400692473,1767779479948,-302.90923456,0.0003863,14]
[400692474,1767779479957,-500.0,0.0003863,14]
[400692475,1767779479971,-525.72357,0.0003863,120]
[400692476,1767779479982,-1544.59,0.0003863,14]
[400692477,1767779479991,-500.0,0.0003863,14]
[400692478,1767779480001,-500.0,0.0003863,14]
[400692479,1767779480014,-204.787634,0.0003863,120]
[400692480,1767779480024,-521.02,0.0003863,14]
[400692481,1767779480034,-1081.89,0.0003863,14]
[400692482,1767779480046,-204.787634,0.0003863,120]
[400692483,1767779480055,-731.45,0.0003863,14]
[400692484,1767779480065,-500.0,0.0003863,14]
[400692485,1767779480075,-500.0,0.0003863,14]
[400692486,1767779480084,-214.124908,0.0003863,120]
[400692487,1767779480094,-608.17,0.0003863,14]
[400692488,1767779480103,-204.787634,0.0003863,120]
[400692489,1767779480113,-1254.59,0.0003863,14]
[400692490,1767779480123,-3561.17,0.0003863,14]
[400692491,1767779480132,-500.0,0.0003863,14]
[400692492,1767779480142,-2118.512815,0.0003863,120]
[400692493,1767779480152,-214.124908,0.0003863,120]
[400692494,1767779480162,-204.787634,0.0003863,120]
[400692495,1767779480171,-500.0,0.0003863,14]
[400692496,1767779480181,-157.63774912,0.0003863,14]
[400692497,1767779480190,-500.0,0.0003863,14]
[400692498,1767779480200,-500.0,0.0003863,14]
[400692499,1767779480209,-525.72357,0.0003863,120]
[400692500,1767779480219,-2118.512815,0.0003863,120]
[400692501,1767779480231,-214.124908,0.0003863,120]
[400692502,1767779480241,-500.0,0.0003863,14]
[400692503,1767779480250,-922.81,0.0003863,14]
[400692504,1767779480260,-500.0,0.0003863,14]
[400692505,1767779480269,-525.72357,0.0003863,120]
[400692506,1767779480279,-214.124908,0.0003863,120]
[400692507,1767779480291,-500.0,0.0003863,14]
[400692508,1767779480300,-500.0,0.0003863,14]
[400692509,1767779480430,-2118.512815,0.0003863,120]
[400692510,1767779480440,-500.0,0.0003863,14]
[400692511,1767779480451,-500.0,0.0003863,14]
[400692512,1767779480460,-2118.512815,0.0003863,120]
[400692513,1767779480470,-500.0,0.0003863,14]
[400692514,1767779480479,-828.22706,0.0003863,104]
[400692515,1767779480490,-828.22706,0.0003863,104]
[400692516,1767779480500,-828.22706,0.0003863,104]
[400692517,1767779480509,-500.0,0.0003863,14]
[400692518,1767779480519,-828.22707,0.0003863,104]
[400692519,1767779480529,-828.22707,0.0003863,104]
[400692520,1767779480538,-828.22706,0.0003863,104]
[400692521,1767779480548,-500.0,0.0003863,14]
[400692522,1767779480557,-500.0,0.0003863,14]
[400692523,1767779480567,-500.0,0.0003863,14]
[400692524,1767779480578,-500.0,0.0003863,14]
[400692525,1767779480588,-151.16677863,0.0003863,14]
[400692526,1767779480598,-500.0,0.0003863,14]
[400692527,1767779480608,-500.0,0.0003863,14]
[400692528,1767779480618,-500.0,0.0003863,14]
[400692529,1767779480627,-528.02778983,0.0003863,14]
[400692530,1767779480636,-536.61,0.0003863,14]
[400692531,1767779480646,-500.0,0.0003863,14]
[400692532,1767779480656,-500.0,0.0003863,14]
[400692533,1767779480667,-716.44,0.0003863,14]
[400692534,1767779480677,-1258.18,0.0003863,14]
[400692535,1767779480686,-608.08,0.0003863,14]
[400692536,1767779480695,-500.0,0.0003863,14]
[400692537,1767779480705,-500.0,0.0003863,10]
[400692538,1767779480714,-500.0,0.0003863,14]
[400692539,1767779480723,-500.0,0.0003863,14]
[400692540,1767779480733,-505.75,0.0003863,14]
[400692541,1767779480743,-529.01,0.0003863,14]
[400692542,1767779480752,-2821.3,0.0003863,14]
[400692543,1767779480761,-1561.51,0.0003863,14]
[400692544,1767779480771,-500.0,0.0003863,14]
[400692545,1767779480779,-500.0,0.0003863,14]
[400692546,1767779480789,-500.0,0.0003863,14]
[400692547,1767779480798,-1055.25,0.0003863,14]
[400692548,1767779480808,-930.94,0.0003863,14]
[400692549,1767779480816,-500.0,0.0003863,14]
[400692550,1767779480825,-500.0,0.0003863,14]
[400692551,1767779480835,-500.0,0.0003863,14]
[400692552,1767779480844,-763.66,0.0003863,14]
[400692553,1767779480853,-500.0,0.0003863,14]
[400692554,1767779480862,-500.0,0.0003863,14]
[400692555,1767779480871,-705.09,0.0003863,14]
[400692556,1767779480881,-500.0,0.0003863,14]
[400692557,1767779480890,-500.0,0.0003863,14]
[400692558,1767779480900,-500.0,0.0003863,14]
[400692559,1767779480909,-552.5,0.0003863,14]
[400692560,1767779480918,-500.0,0.0003863,14]
[400692561,1767779480928,-575.66,0.0003863,14]
[400692562,1767779480937,-500.0,0.0003863,14]
[400692563,1767779480946,-500.0,0.0003863,14]
[400692564,1767779480956,-260.027019,0.0003863,120]
[400692565,1767779480968,-502.43,0.0003863,14]
[400692566,1767779480979,-500.0,0.0003863,14]
[400692567,1767779480989,-500.0,0.0003863,14]
[400692568,1767779480998,-500.0,0.0003863,14]
[400692569,1767779481009,-608.93,0.0003863,14]
[400692570,1767779481018,-500.0,0.0003863,14]
[400692571,1767779481028,-500.0,0.0003863,14]
[400692572,1767779481037,-274.833505,0.0003863,120]
[400692573,1767779481048,-500.0,0.0003863,14]
[400692574,1767779481057,-500.0,0.0003863,14]
[400692575,1767779481067,-500.0,0.0003863,14]
[400692576,1767779481076,-1168.4,0.0003863,14]
[400692577,1767779481085,-151.0,0.0003863,120]
[400692578,1767779481094,-514.26486163,0.0003863,14]
[400692579,1767779481105,-477.38530816,0.0003863,14]
[400692580,1767779481114,-500.0,0.0003863,14]
[400692581,1767779481124,-500.0,0.0003863,14]
[400692582,1767779481136,-1291.22,0.0003863,14]
[400692583,1767779481145,-1240.12,0.0003863,14]
[400692584,1767779481154,-2824.04,0.0003863,14]
[400692585,1767779481164,-500.0,0.0003863,14]
[400692586,1767779481174,-275.784864,0.0003863,120]
[400692587,1767779481183,-500.0,0.0003863,14]
[400692588,1767779481192,-500.0,0.0003863,14]
[400692589,1767779481203,-275.784864,0.0003863,120]
[400692590,1767779481213,-500.0,0.0003863,14]
[400692591,1767779481222,-500.0,0.0003863,14]
[400692592,1767779481232,-500.0,0.0003863,14]
[400692593,1767779481242,-275.784864,0.0003863,120]
[400692594,1767779481251,-850.92,0.0003863,14]
[400692595,1767779481260,-178.569949,0.0003863,120]
[400692596,1767779481270,-500.0,0.0003863,14]
[400692597,1767779481280,-151.0,0.0003863,120]
[400692598,1767779481289,-275.784864,0.0003863,120]
[400692599,1767779481300,-500.0,0.0003863,14]
[400692600,1767779481310,-500.0,0.0003863,14]
[400692601,1767779481319,-500.0,0.0003863,14]
[400692602,1767779481328,-563.84,0.0003863,14]
[400692603,1767779481338,-2223.14,0.0003863,14]
[400692604,1767779481348,-500.0,0.0003863,14]
[400692605,1767779481357,-576.39,0.0003863,14]
[400692606,1767779481368,-3120.48,0.0003863,14]
[400692607,1767779481378,-574.24700407,0.0003863,14]
[400692608,1767779481388,-285.12269078,0.0003863,14]
[400692609,1767779481397,-500.0,0.0003863,14]
[400692610,1767779481407,-500.0,0.0003863,14]
[400692611,1767779481418,-500.0,0.0003863,14]
[400692612,1767779481427,-500.0,0.0003863,14]
[400692613,1767779481438,-500.0,0.0003863,14]
[400692614,1767779481447,-543.48,0.0003863,14]
[400692615,1767779481456,-500.0,0.0003863,14]
[400692616,1767779481466,-500.0,0.0003863,14]
[400692617,1767779481475,-151.0,0.0003863,120]
[400692618,1767779481484,-151.0,0.0003863,120]
[400692619,1767779481497,-500.0,0.0003863,14]
[400692620,1767779481507,-151.0,0.0003863,120]
[400692621,1767779481516,-612.37,0.0003863,14]
[400692622,1767779481525,-500.0,0.0003863,14]
[400692623,1767779481535,-500.0,0.0003863,14]
[400692624,1767779481545,-500.0,0.0003863,14]
[400692625,1767779481554,-500.0,0.0003863,14]
[400692626,1767779481564,-3258.14,0.0003863,14]
[400692627,1767779481573,-500.0,0.0003863,14]
[400692628,1767779481582,-500.0,0.0003863,14]
[400692629,1767779481591,-534.9344602,0.0003863,14]
[400692630,1767779481601,-500.0,0.0003863,14]